[Event "Titled Tuesday Blitz July 18 Late 2023"]
[White "Ovchinnikov, Vsevolod"]
[Black "Toniutti, Ezio"]
[WhiteFideId "24176842"]
[BlackFideId "113034"]
[WhiteElo "2652"]
[BlackElo "2502"]
[Result "1-0"]
[Round "11"]
[TimeControl "180+2"]
[Date "2023.07.18"]
[WhiteClock "0:00:02"]
[BlackClock "0:00:00"]
[Board "26"]

1. d4 {[%clk 0:03:00]}  d5 {[%clk 0:03:00]} 2. c4 {[%clk 0:03:01]}  c6 {[%clk 0:02:59]} 3. Nf3 {[%clk 0:03:01]}  Nf6 {[%clk 0:02:58]} 4. g3 {[%clk 0:03:02]}  Bf5 {[%clk 0:02:54]} 5. Nc3 {[%clk 0:03:01]}  e6 {[%clk 0:02:54]} 6. Qb3 {[%clk 0:03:02]}  Qb6 {[%clk 0:02:54]} 7. c5 {[%clk 0:02:59]}  Qxb3 {[%clk 0:02:52]} 8. axb3 {[%clk 0:03:00]}  Na6 {[%clk 0:02:15]} 9. Ne5 {[%clk 0:02:21]}  Nb4 {[%clk 0:02:06]} 10. Ra4 {[%clk 0:02:21]}  a5 {[%clk 0:02:02]} 11. f3 {[%clk 0:02:08]}  Bc2 {[%clk 0:01:49]} 12. Ra3 {[%clk 0:02:04]}  Be7 {[%clk 0:01:48]} 13. Bf4 {[%clk 0:01:48]}  Nh5 {[%clk 0:01:45]} 14. Bd2 {[%clk 0:01:36]}  f6 {[%clk 0:01:41]} 15. Ng4 {[%clk 0:01:34]}  Kf7 {[%clk 0:01:38]} 16. Na4 {[%clk 0:01:08]}  Bd8 {[%clk 0:01:01]} 17. Bc3 {[%clk 0:00:38]}  g5 {[%clk 0:00:57]} 18. Kd2 {[%clk 0:00:37]}  Bg6 {[%clk 0:00:52]} 19. e3 {[%clk 0:00:29]}  Ng7 {[%clk 0:00:51]} 20. Nf2 {[%clk 0:00:26]}  Nc2 {[%clk 0:00:48]} 21. Ra2 {[%clk 0:00:24]}  h5 {[%clk 0:00:44]} 22. Bd3 {[%clk 0:00:22]}  Nb4 {[%clk 0:00:40]} 23. Bxg6+ {[%clk 0:00:21]}  Kxg6 {[%clk 0:00:39]} 24. Ra3 {[%clk 0:00:20]}  Bc7 {[%clk 0:00:37]} 25. Nd3 {[%clk 0:00:15]}  Nxd3 {[%clk 0:00:33]} 26. Kxd3 {[%clk 0:00:15]}  g4 {[%clk 0:00:33]} 27. f4 {[%clk 0:00:15]}  h4 {[%clk 0:00:33]} 28. Rg1 {[%clk 0:00:15]}  hxg3 {[%clk 0:00:32]} 29. hxg3 {[%clk 0:00:16]}  Nf5 {[%clk 0:00:31]} 30. Nb6 {[%clk 0:00:10]}  Bxb6 {[%clk 0:00:30]} 31. cxb6 {[%clk 0:00:11]}  Rh3 {[%clk 0:00:30]} 32. Rxa5 {[%clk 0:00:08]}  Rxa5 {[%clk 0:00:28]} 33. Bxa5 {[%clk 0:00:09]}  Nxg3 {[%clk 0:00:27]} 34. Be1 {[%clk 0:00:09]}  Nf5 {[%clk 0:00:23]} 35. Rxg4+ {[%clk 0:00:04]}  Kf7 {[%clk 0:00:22]} 36. Bd2 {[%clk 0:00:03]}  Nd6 {[%clk 0:00:20]} 37. Rg1 {[%clk 0:00:03]}  Ne4 {[%clk 0:00:19]} 38. Rg2 {[%clk 0:00:03]}  Rh1 {[%clk 0:00:18]} 39. b4 {[%clk 0:00:03]}  Rd1 {[%clk 0:00:16]} 40. Kc2 {[%clk 0:00:04]}  Rh1 {[%clk 0:00:14]} 41. Bc1 {[%clk 0:00:03]}  Rh3 {[%clk 0:00:14]} 42. Bd2 {[%clk 0:00:02]}  Nd6 {[%clk 0:00:13]} 43. b3 {[%clk 0:00:02]}  Nf5 {[%clk 0:00:13]} 44. Kd3 {[%clk 0:00:02]}  Ng3 {[%clk 0:00:11]} 45. Bc1 {[%clk 0:00:02]}  Ne4 {[%clk 0:00:11]} 46. Bd2 {[%clk 0:00:02]}  Rg3 {[%clk 0:00:06]} 47. Rxg3 {[%clk 0:00:02]}  Nxg3 {[%clk 0:00:06]} 48. Be1 {[%clk 0:00:03]}  Ne4 {[%clk 0:00:05]} 49. Bh4 {[%clk 0:00:03]}  Kg6 {[%clk 0:00:05]} 50. Be1 {[%clk 0:00:03]}  Kh5 {[%clk 0:00:05]} 51. Ke2 {[%clk 0:00:04]}  Kg4 {[%clk 0:00:05]} 52. Bf2 {[%clk 0:00:03]}  Nd6 {[%clk 0:00:05]} 53. Be1 {[%clk 0:00:03]}  Nc8 {[%clk 0:00:05]} 54. Bf2 {[%clk 0:00:03]}  Nxb6 {[%clk 0:00:05]} 55. Be1 {[%clk 0:00:04]}  Nc8 {[%clk 0:00:05]} 56. Bf2 {[%clk 0:00:04]}  Nd6 {[%clk 0:00:05]} 57. Be1 {[%clk 0:00:04]}  Nf5 {[%clk 0:00:04]} 58. Bf2 {[%clk 0:00:04]}  Ng3+ {[%clk 0:00:04]} 59. Bxg3 {[%clk 0:00:03]}  Kxg3 {[%clk 0:00:04]} 60. b5 {[%clk 0:00:03]}  cxb5 {[%clk 0:00:03]} 61. b4 {[%clk 0:00:03]}  Kg2 {[%clk 0:00:00]} 62. e4 {[%clk 0:00:02]} 1-0


[Site "https://www.chess.com"]

[Event "Titled Tuesday Blitz July 18 Late 2023"]
[White "Medarde Santiago, Luis Marcos"]
[Black "Kleiman, Jake"]
[WhiteFideId "2263076"]
[BlackFideId "2020041"]
[WhiteElo "2645"]
[BlackElo "2523"]
[Result "1-0"]
[Round "11"]
[TimeControl "180+2"]
[Date "2023.07.18"]
[WhiteClock "0:00:45"]
[BlackClock "0:00:00"]
[Board "27"]

1. e4 {[%clk 0:03:00]}  e5 {[%clk 0:02:59]} 2. Nf3 {[%clk 0:03:00]}  Nc6 {[%clk 0:03:00]} 3. d4 {[%clk 0:03:01]}  exd4 {[%clk 0:03:00]} 4. Bc4 {[%clk 0:03:01]}  Nf6 {[%clk 0:02:55]} 5. e5 {[%clk 0:03:01]}  d5 {[%clk 0:02:55]} 6. Bb5 {[%clk 0:03:01]}  Ne4 {[%clk 0:02:55]} 7. Nxd4 {[%clk 0:03:02]}  Bd7 {[%clk 0:02:56]} 8. Bxc6 {[%clk 0:03:01]}  bxc6 {[%clk 0:02:57]} 9. O-O {[%clk 0:03:01]}  Bc5 {[%clk 0:02:57]} 10. f3 {[%clk 0:03:01]}  Ng5 {[%clk 0:02:58]} 11. f4 {[%clk 0:03:01]}  Ne4 {[%clk 0:02:57]} 12. Be3 {[%clk 0:03:02]}  Bb6 {[%clk 0:02:57]} 13. Nd2 {[%clk 0:03:01]}  Nxd2 {[%clk 0:02:57]} 14. Qxd2 {[%clk 0:03:02]}  c5 {[%clk 0:02:58]} 15. Nf3 {[%clk 0:03:01]}  d4 {[%clk 0:02:58]} 16. Bf2 {[%clk 0:03:00]}  O-O {[%clk 0:02:55]} 17. a4 {[%clk 0:02:54]}  a5 {[%clk 0:02:53]} 18. Qd3 {[%clk 0:02:53]}  f6 {[%clk 0:02:25]} 19. Rfe1 {[%clk 0:02:43]}  fxe5 {[%clk 0:02:05]} 20. Nxe5 {[%clk 0:02:44]}  Be6 {[%clk 0:01:55]} 21. Ng6 {[%clk 0:02:41]}  Qd7 {[%clk 0:00:57]} 22. Nxf8 {[%clk 0:02:38]}  Rxf8 {[%clk 0:00:57]} 23. b3 {[%clk 0:02:19]}  Rxf4 {[%clk 0:00:38]} 24. Bg3 {[%clk 0:02:19]}  Rf6 {[%clk 0:00:36]} 25. Bh4 {[%clk 0:02:19]}  Rg6 {[%clk 0:00:35]} 26. Re2 {[%clk 0:02:12]}  Qd5 {[%clk 0:00:17]} 27. Rf1 {[%clk 0:02:08]}  Rg4 {[%clk 0:00:12]} 28. Be7 {[%clk 0:02:05]}  Bf7 {[%clk 0:00:07]} 29. Ref2 {[%clk 0:02:02]}  c4 {[%clk 0:00:03]} 30. Qh3 {[%clk 0:01:45]}  h5 {[%clk 0:00:03]} 31. Rxf7 {[%clk 0:01:42]}  d3+ {[%clk 0:00:03]} 32. Kh1 {[%clk 0:01:42]}  dxc2 {[%clk 0:00:02]} 33. Rf8+ {[%clk 0:00:58]}  Kh7 {[%clk 0:00:02]} 34. bxc4 {[%clk 0:00:59]}  Qe5 {[%clk 0:00:03]} 35. Ba3 {[%clk 0:00:55]}  Be3 {[%clk 0:00:02]} 36. Bc1 {[%clk 0:00:50]}  Bxc1 {[%clk 0:00:02]} 37. Rxc1 {[%clk 0:00:50]}  Rxc4 {[%clk 0:00:00]} 38. Rf5 {[%clk 0:00:45]} 1-0


[Site "https://www.chess.com"]

[Event "Titled Tuesday Blitz July 18 Late 2023"]
[White "Bartel, Michal"]
[Black "Wieczorek, Oskar"]
[WhiteFideId "1119257"]
[BlackFideId "1133950"]
[WhiteElo "2579"]
[BlackElo "2708"]
[Result "0-1"]
[Round "11"]
[TimeControl "180+2"]
[Date "2023.07.18"]
[WhiteClock "0:01:55"]
[BlackClock "0:00:14"]
[Board "29"]

1. e4 {[%clk 0:03:00]}  c6 {[%clk 0:03:00]} 2. Nc3 {[%clk 0:03:00]}  d5 {[%clk 0:03:00]} 3. Qf3 {[%clk 0:03:00]}  g6 {[%clk 0:02:57]} 4. exd5 {[%clk 0:02:59]}  Bg7 {[%clk 0:02:57]} 5. Nge2 {[%clk 0:02:57]}  Nf6 {[%clk 0:02:57]} 6. dxc6 {[%clk 0:02:57]}  Nxc6 {[%clk 0:02:58]} 7. a3 {[%clk 0:02:52]}  O-O {[%clk 0:02:57]} 8. h3 {[%clk 0:02:50]}  e5 {[%clk 0:02:53]} 9. d3 {[%clk 0:02:50]}  Re8 {[%clk 0:02:37]} 10. Be3 {[%clk 0:02:32]}  Nd4 {[%clk 0:02:34]} 11. Bxd4 {[%clk 0:02:33]}  exd4 {[%clk 0:02:34]} 12. Ne4 {[%clk 0:02:34]}  Nxe4 {[%clk 0:02:18]} 13. dxe4 {[%clk 0:02:34]}  Qa5+ {[%clk 0:02:12]} 14. b4 {[%clk 0:02:29]}  Qc7 {[%clk 0:02:05]} 15. Qd3 {[%clk 0:02:26]}  a5 {[%clk 0:02:03]} 16. Rd1 {[%clk 0:02:20]}  axb4 {[%clk 0:02:03]} 17. axb4 {[%clk 0:02:21]}  Qb6 {[%clk 0:01:56]} 18. b5 {[%clk 0:02:06]}  Be6 {[%clk 0:01:44]} 19. Nxd4 {[%clk 0:02:02]}  Qa5+ {[%clk 0:01:14]} 20. Qd2 {[%clk 0:01:58]}  Qxd2+ {[%clk 0:01:14]} 21. Rxd2 {[%clk 0:01:57]}  Ra1+ {[%clk 0:01:15]} 22. Ke2 {[%clk 0:01:53]}  Bc4+ {[%clk 0:01:12]} 23. Ke3 {[%clk 0:01:54]}  Rxf1 {[%clk 0:00:58]} 24. Rxf1 {[%clk 0:01:53]}  Bxf1 {[%clk 0:00:59]} 25. Kf3 {[%clk 0:01:51]}  Bxd4 {[%clk 0:00:59]} 26. Rxd4 {[%clk 0:01:52]}  Bxb5 {[%clk 0:01:00]} 27. Kf4 {[%clk 0:01:51]}  f6 {[%clk 0:00:55]} 28. f3 {[%clk 0:01:51]}  Bc6 {[%clk 0:00:54]} 29. h4 {[%clk 0:01:51]}  Kf7 {[%clk 0:00:54]} 30. g4 {[%clk 0:01:51]}  h6 {[%clk 0:00:53]} 31. g5 {[%clk 0:01:51]}  fxg5+ {[%clk 0:00:48]} 32. hxg5 {[%clk 0:01:52]}  h5 {[%clk 0:00:49]} 33. Rd6 {[%clk 0:01:50]}  Re6 {[%clk 0:00:35]} 34. Rd8 {[%clk 0:01:50]}  Be8 {[%clk 0:00:33]} 35. Rb8 {[%clk 0:01:49]}  Re7 {[%clk 0:00:32]} 36. c4 {[%clk 0:01:46]}  Rc7 {[%clk 0:00:27]} 37. Ke5 {[%clk 0:01:45]}  Ke7 {[%clk 0:00:23]} 38. f4 {[%clk 0:01:41]}  h4 {[%clk 0:00:18]} 39. f5 {[%clk 0:01:41]}  h3 {[%clk 0:00:16]} 40. Ra8 {[%clk 0:01:40]}  Rxc4 {[%clk 0:00:11]} 41. Ra2 {[%clk 0:01:38]}  Bc6 {[%clk 0:00:10]} 42. f6+ {[%clk 0:01:35]}  Kf7 {[%clk 0:00:10]} 43. Rh2 {[%clk 0:01:34]}  Rxe4+ {[%clk 0:00:10]} 44. Kd6 {[%clk 0:01:35]}  Re6+ {[%clk 0:00:10]} 45. Kc7 {[%clk 0:01:35]}  Bg2 {[%clk 0:00:10]} 46. Kd7 {[%clk 0:01:33]}  Re5 {[%clk 0:00:10]} 47. Kc7 {[%clk 0:01:34]}  Rxg5 {[%clk 0:00:10]} 48. Kb6 {[%clk 0:01:33]}  Kxf6 {[%clk 0:00:10]} 49. Ka7 {[%clk 0:01:34]}  Ke5 {[%clk 0:00:11]} 50. Rxg2 {[%clk 0:01:35]}  hxg2 {[%clk 0:00:10]} 51. Kb8 {[%clk 0:01:36]}  g1=Q {[%clk 0:00:09]} 52. Ka8 {[%clk 0:01:35]}  Qa1+ {[%clk 0:00:09]} 53. Kb8 {[%clk 0:01:36]}  Rf5 {[%clk 0:00:08]} 54. Kc8 {[%clk 0:01:37]}  Kd6 {[%clk 0:00:08]} 55. Kb8 {[%clk 0:01:38]}  Rf8+ {[%clk 0:00:06]} 56. Kxb7 {[%clk 0:01:38]}  Rf7+ {[%clk 0:00:07]} 57. Kb6 {[%clk 0:01:38]}  Qb2+ {[%clk 0:00:06]} 58. Ka5 {[%clk 0:01:39]}  Kc5 {[%clk 0:00:06]} 59. Ka6 {[%clk 0:01:39]}  Kc4 {[%clk 0:00:07]} 60. Ka5 {[%clk 0:01:39]}  Kc3 {[%clk 0:00:07]} 61. Ka6 {[%clk 0:01:40]}  Kc2 {[%clk 0:00:08]} 62. Ka5 {[%clk 0:01:41]}  Kb1 {[%clk 0:00:09]} 63. Ka6 {[%clk 0:01:41]}  Ka2 {[%clk 0:00:10]} 64. Ka5 {[%clk 0:01:42]}  Rf1 {[%clk 0:00:11]} 65. Ka6 {[%clk 0:01:43]}  Ra1 {[%clk 0:00:11]} 66. Ka5 {[%clk 0:01:44]}  g5 {[%clk 0:00:12]} 67. Ka6 {[%clk 0:01:45]}  g4 {[%clk 0:00:13]} 68. Ka5 {[%clk 0:01:46]}  g3 {[%clk 0:00:13]} 69. Ka6 {[%clk 0:01:46]}  g2 {[%clk 0:00:14]} 70. Ka5 {[%clk 0:01:47]}  g1=Q {[%clk 0:00:14]} 71. Ka6 {[%clk 0:01:48]}  Qgb1 {[%clk 0:00:15]} 72. Ka5 {[%clk 0:01:49]}  Qb3 {[%clk 0:00:15]} 73. Ka6 {[%clk 0:01:50]}  Q1b2 {[%clk 0:00:15]} 74. Ka5 {[%clk 0:01:51]}  Qb4+ {[%clk 0:00:15]} 75. Ka6 {[%clk 0:01:52]}  Q2b3 {[%clk 0:00:15]} 76. Ka7 {[%clk 0:01:53]}  Qb5 {[%clk 0:00:14]} 77. Ka8 {[%clk 0:01:54]}  Q3b4 {[%clk 0:00:15]} 78. Ka7 {[%clk 0:01:55]}  Kb1# {[%clk 0:00:14]} 0-1


[Site "https://www.chess.com"]

[Event "Titled Tuesday Blitz July 18 Late 2023"]
[White "Karttunen, Mika"]
[Black "Przybylski, Wojciech"]
[WhiteFideId "502081"]
[BlackFideId "1117599"]
[WhiteElo "2648"]
[BlackElo "2549"]
[Result "1-0"]
[Round "11"]
[TimeControl "180+2"]
[Date "2023.07.18"]
[WhiteClock "0:00:08"]
[BlackClock "0:00:01"]
[Board "33"]

1. e4 {[%clk 0:03:00]}  e5 {[%clk 0:02:59]} 2. Nf3 {[%clk 0:03:00]}  Nf6 {[%clk 0:02:58]} 3. Nxe5 {[%clk 0:03:00]}  d6 {[%clk 0:02:59]} 4. Nf3 {[%clk 0:02:59]}  Nxe4 {[%clk 0:02:59]} 5. d4 {[%clk 0:02:58]}  d5 {[%clk 0:02:59]} 6. Bd3 {[%clk 0:02:57]}  Bd6 {[%clk 0:02:58]} 7. c4 {[%clk 0:02:56]}  c6 {[%clk 0:02:58]} 8. Nc3 {[%clk 0:02:55]}  Nxc3 {[%clk 0:02:56]} 9. bxc3 {[%clk 0:02:55]}  O-O {[%clk 0:02:55]} 10. O-O {[%clk 0:02:55]}  Bg4 {[%clk 0:02:54]} 11. h3 {[%clk 0:02:20]}  Bh5 {[%clk 0:02:51]} 12. g4 {[%clk 0:01:55]}  Bg6 {[%clk 0:02:50]} 13. Re1 {[%clk 0:01:24]}  Nd7 {[%clk 0:02:44]} 14. Bg5 {[%clk 0:01:18]}  Qc7 {[%clk 0:02:42]} 15. c5 {[%clk 0:01:13]}  Bf4 {[%clk 0:02:40]} 16. Kg2 {[%clk 0:00:47]}  Rfe8 {[%clk 0:02:27]} 17. Bh4 {[%clk 0:00:43]}  Be4 {[%clk 0:02:17]} 18. Bxe4 {[%clk 0:00:38]}  dxe4 {[%clk 0:02:17]} 19. Nd2 {[%clk 0:00:35]}  g5 {[%clk 0:01:48]} 20. Bg3 {[%clk 0:00:35]}  e3 {[%clk 0:01:48]} 21. Nc4 {[%clk 0:00:32]}  Nf6 {[%clk 0:01:19]} 22. Nd6 {[%clk 0:00:31]}  Re6 {[%clk 0:01:14]} 23. Qf3 {[%clk 0:00:30]}  Rae8 {[%clk 0:00:38]} 24. Bxf4 {[%clk 0:00:29]}  gxf4 {[%clk 0:00:38]} 25. Qxf4 {[%clk 0:00:27]}  Nd5 {[%clk 0:00:38]} 26. Qg5+ {[%clk 0:00:24]}  Rg6 {[%clk 0:00:38]} 27. Nxe8 {[%clk 0:00:24]}  Qd7 {[%clk 0:00:26]} 28. Nf6+ {[%clk 0:00:16]}  Nxf6 {[%clk 0:00:24]} 29. Qxe3 {[%clk 0:00:16]}  h5 {[%clk 0:00:23]} 30. f3 {[%clk 0:00:16]}  Qd5 {[%clk 0:00:16]} 31. Qe5 {[%clk 0:00:14]}  Qc4 {[%clk 0:00:16]} 32. Re3 {[%clk 0:00:13]}  hxg4 {[%clk 0:00:15]} 33. hxg4 {[%clk 0:00:13]}  Nd5 {[%clk 0:00:14]} 34. Ree1 {[%clk 0:00:10]}  Qxc3 {[%clk 0:00:10]} 35. Rh1 {[%clk 0:00:10]}  Nf6 {[%clk 0:00:06]} 36. Rae1 {[%clk 0:00:09]}  Qd2+ {[%clk 0:00:06]} 37. Re2 {[%clk 0:00:09]}  Qd3 {[%clk 0:00:06]} 38. Re3 {[%clk 0:00:09]}  Qd2+ {[%clk 0:00:06]} 39. Re2 {[%clk 0:00:10]}  Qd3 {[%clk 0:00:06]} 40. Rh3 {[%clk 0:00:10]}  Qb1 {[%clk 0:00:06]} 41. Rg3 {[%clk 0:00:10]}  Qd3 {[%clk 0:00:06]} 42. g5 {[%clk 0:00:10]}  Nd5 {[%clk 0:00:06]} 43. Rh3 {[%clk 0:00:09]}  f6 {[%clk 0:00:05]} 44. Qe8+ {[%clk 0:00:08]}  Kg7 {[%clk 0:00:05]} 45. Qh8+ {[%clk 0:00:08]}  Kf7 {[%clk 0:00:05]} 46. Rh7+ {[%clk 0:00:08]}  Rg7 {[%clk 0:00:01]} 47. Qxg7# {[%clk 0:00:08]} 1-0


[Site "https://www.chess.com"]

[Event "Titled Tuesday Blitz July 18 Late 2023"]
[White "Ganiev, Roman"]
[Black "Van Foreest, Machteld"]
[WhiteFideId "4131452"]
[BlackFideId "1051563"]
[WhiteElo "2605"]
[BlackElo "2520"]
[Result "1-0"]
[Round "11"]
[TimeControl "180+2"]
[Date "2023.07.18"]
[WhiteClock "0:00:13"]
[BlackClock "0:00:01"]
[Board "36"]

1. e4 {[%clk 0:03:00]}  c5 {[%clk 0:02:59]} 2. Nf3 {[%clk 0:03:01]}  e6 {[%clk 0:02:59]} 3. d4 {[%clk 0:03:01]}  cxd4 {[%clk 0:02:59]} 4. Nxd4 {[%clk 0:03:02]}  Nc6 {[%clk 0:02:59]} 5. Nc3 {[%clk 0:03:01]}  Nf6 {[%clk 0:02:59]} 6. Ndb5 {[%clk 0:03:00]}  Bc5 {[%clk 0:02:58]} 7. Nd6+ {[%clk 0:02:59]}  Ke7 {[%clk 0:02:57]} 8. Bf4 {[%clk 0:02:59]}  e5 {[%clk 0:02:57]} 9. Nf5+ {[%clk 0:03:00]}  Kf8 {[%clk 0:02:57]} 10. Bg5 {[%clk 0:03:00]}  d6 {[%clk 0:02:57]} 11. Be3 {[%clk 0:02:53]}  Bb4 {[%clk 0:02:57]} 12. Qd3 {[%clk 0:02:33]}  d5 {[%clk 0:02:49]} 13. exd5 {[%clk 0:02:25]}  Qxd5 {[%clk 0:01:46]} 14. Qxd5 {[%clk 0:01:43]}  Nxd5 {[%clk 0:01:45]} 15. O-O-O {[%clk 0:01:43]}  Bxf5 {[%clk 0:01:25]} 16. Nxd5 {[%clk 0:01:40]}  Rc8 {[%clk 0:01:11]} 17. c3 {[%clk 0:01:35]}  Be7 {[%clk 0:01:04]} 18. Nxe7 {[%clk 0:01:35]}  Kxe7 {[%clk 0:01:04]} 19. Bc5+ {[%clk 0:01:25]}  Kf6 {[%clk 0:01:03]} 20. Rd6+ {[%clk 0:01:24]}  Be6 {[%clk 0:01:02]} 21. Be2 {[%clk 0:01:13]}  Rhd8 {[%clk 0:00:56]} 22. Rhd1 {[%clk 0:01:12]}  Rxd6 {[%clk 0:00:54]} 23. Rxd6 {[%clk 0:01:06]}  b6 {[%clk 0:00:54]} 24. Be3 {[%clk 0:01:00]}  Nb4 {[%clk 0:00:52]} 25. a3 {[%clk 0:00:40]}  Nd5 {[%clk 0:00:51]} 26. Ba6 {[%clk 0:00:20]}  Rc7 {[%clk 0:00:27]} 27. Rd8 {[%clk 0:00:20]}  Ke7 {[%clk 0:00:23]} 28. Ra8 {[%clk 0:00:14]}  Nxe3 {[%clk 0:00:21]} 29. fxe3 {[%clk 0:00:14]}  Bb3 {[%clk 0:00:21]} 30. Be2 {[%clk 0:00:13]}  Rd7 {[%clk 0:00:20]} 31. Rc8 {[%clk 0:00:11]}  f5 {[%clk 0:00:20]} 32. c4 {[%clk 0:00:09]}  Kf6 {[%clk 0:00:19]} 33. c5 {[%clk 0:00:10]}  bxc5 {[%clk 0:00:17]} 34. Rxc5 {[%clk 0:00:10]}  f4 {[%clk 0:00:17]} 35. exf4 {[%clk 0:00:11]}  exf4 {[%clk 0:00:18]} 36. Rc3 {[%clk 0:00:12]}  Ba4 {[%clk 0:00:16]} 37. Bf3 {[%clk 0:00:12]}  Re7 {[%clk 0:00:15]} 38. Rc4 {[%clk 0:00:11]}  Bb3 {[%clk 0:00:14]} 39. Rxf4+ {[%clk 0:00:10]}  Kg5 {[%clk 0:00:11]} 40. Rb4 {[%clk 0:00:11]}  Bf7 {[%clk 0:00:09]} 41. h4+ {[%clk 0:00:12]}  Kf6 {[%clk 0:00:09]} 42. Rf4+ {[%clk 0:00:11]}  Kg6 {[%clk 0:00:07]} 43. Rb4 {[%clk 0:00:12]}  Re1+ {[%clk 0:00:06]} 44. Kd2 {[%clk 0:00:13]}  Rh1 {[%clk 0:00:05]} 45. h5+ {[%clk 0:00:13]}  Kh6 {[%clk 0:00:05]} 46. Rb7 {[%clk 0:00:14]}  a5 {[%clk 0:00:03]} 47. Rxf7 {[%clk 0:00:14]}  Rh2 {[%clk 0:00:03]} 48. Rf4 {[%clk 0:00:13]}  g6 {[%clk 0:00:03]} 49. hxg6 {[%clk 0:00:13]}  hxg6 {[%clk 0:00:01]} 50. Ra4 {[%clk 0:00:13]} 1-0


[Site "https://www.chess.com"]

[Event "Titled Tuesday Blitz July 18 Late 2023"]
[White "ArchibaldCerveza29"]
[Black "Piesik, Piotr"]
[BlackFideId "1136194"]
[WhiteElo "2473"]
[BlackElo "2603"]
[Result "0-1"]
[Round "11"]
[TimeControl "180+2"]
[Date "2023.07.18"]
[WhiteClock "0:00:06"]
[BlackClock "0:00:08"]
[Board "37"]

1. e4 {[%clk 0:03:00]}  g6 {[%clk 0:02:57]} 2. d4 {[%clk 0:03:00]}  Bg7 {[%clk 0:02:57]} 3. Nc3 {[%clk 0:03:01]}  c6 {[%clk 0:02:58]} 4. Nf3 {[%clk 0:02:51]}  d6 {[%clk 0:02:58]} 5. Be3 {[%clk 0:02:50]}  Nf6 {[%clk 0:02:58]} 6. h3 {[%clk 0:02:51]}  Nbd7 {[%clk 0:02:58]} 7. a4 {[%clk 0:02:50]}  O-O {[%clk 0:02:57]} 8. Qd2 {[%clk 0:02:50]}  e5 {[%clk 0:02:58]} 9. Be2 {[%clk 0:02:47]}  Qe7 {[%clk 0:02:57]} 10. dxe5 {[%clk 0:02:43]}  dxe5 {[%clk 0:02:58]} 11. O-O {[%clk 0:02:43]}  Nc5 {[%clk 0:02:58]} 12. Bg5 {[%clk 0:02:24]}  Rd8 {[%clk 0:02:56]} 13. Qe3 {[%clk 0:02:21]}  Ne6 {[%clk 0:02:42]} 14. Bh4 {[%clk 0:02:12]}  Nd4 {[%clk 0:02:34]} 15. Rac1 {[%clk 0:02:06]}  Nxf3+ {[%clk 0:02:16]} 16. Bxf3 {[%clk 0:02:03]}  Be6 {[%clk 0:02:16]} 17. Rfd1 {[%clk 0:02:02]}  Qb4 {[%clk 0:02:07]} 18. b3 {[%clk 0:01:56]}  Rxd1+ {[%clk 0:02:03]} 19. Rxd1 {[%clk 0:01:57]}  Nd7 {[%clk 0:02:03]} 20. Nb1 {[%clk 0:01:49]}  Bf8 {[%clk 0:01:59]} 21. Nd2 {[%clk 0:01:42]}  Bc5 {[%clk 0:01:47]} 22. Qe2 {[%clk 0:01:42]}  a5 {[%clk 0:01:10]} 23. Nb1 {[%clk 0:01:33]}  Nf8 {[%clk 0:01:05]} 24. Bg5 {[%clk 0:01:28]}  Qb6 {[%clk 0:00:54]} 25. Bg4 {[%clk 0:01:23]}  Re8 {[%clk 0:00:51]} 26. Bxe6 {[%clk 0:01:21]}  Nxe6 {[%clk 0:00:52]} 27. Bf6 {[%clk 0:01:10]}  Nf4 {[%clk 0:00:47]} 28. Qd2 {[%clk 0:01:08]}  Nh5 {[%clk 0:00:36]} 29. Bg5 {[%clk 0:01:03]}  Qc7 {[%clk 0:00:23]} 30. Qe2 {[%clk 0:01:00]}  f6 {[%clk 0:00:20]} 31. Bh6 {[%clk 0:00:59]}  Qf7 {[%clk 0:00:16]} 32. Nd2 {[%clk 0:00:58]}  Ng7 {[%clk 0:00:14]} 33. Be3 {[%clk 0:00:53]}  Ne6 {[%clk 0:00:13]} 34. Nc4 {[%clk 0:00:51]}  Bd4 {[%clk 0:00:07]} 35. Nxa5 {[%clk 0:00:46]}  Qc7 {[%clk 0:00:07]} 36. Nc4 {[%clk 0:00:46]}  b5 {[%clk 0:00:07]} 37. axb5 {[%clk 0:00:42]}  cxb5 {[%clk 0:00:08]} 38. Na3 {[%clk 0:00:42]}  b4 {[%clk 0:00:08]} 39. Nc4 {[%clk 0:00:38]}  Ra8 {[%clk 0:00:08]} 40. Bd2 {[%clk 0:00:34]}  Qc5 {[%clk 0:00:07]} 41. Ne3 {[%clk 0:00:30]}  Ra2 {[%clk 0:00:06]} 42. Nd5 {[%clk 0:00:22]}  Kf7 {[%clk 0:00:06]} 43. Qf3 {[%clk 0:00:20]}  f5 {[%clk 0:00:04]} 44. Bxb4 {[%clk 0:00:19]}  Qxc2 {[%clk 0:00:04]} 45. exf5 {[%clk 0:00:16]}  Qxf2+ {[%clk 0:00:04]} 46. Qxf2 {[%clk 0:00:16]}  Bxf2+ {[%clk 0:00:05]} 47. Kh1 {[%clk 0:00:16]}  gxf5 {[%clk 0:00:06]} 48. Bc3 {[%clk 0:00:15]}  Bd4 {[%clk 0:00:05]} 49. Bxd4 {[%clk 0:00:14]}  Nxd4 {[%clk 0:00:06]} 50. b4 {[%clk 0:00:14]}  Ke6 {[%clk 0:00:06]} 51. Nc3 {[%clk 0:00:14]}  Rb2 {[%clk 0:00:06]} 52. b5 {[%clk 0:00:14]}  Nxb5 {[%clk 0:00:06]} 53. Na4 {[%clk 0:00:14]}  Rc2 {[%clk 0:00:05]} 54. Rb1 {[%clk 0:00:14]}  Nd4 {[%clk 0:00:06]} 55. Rb6+ {[%clk 0:00:14]}  Kd5 {[%clk 0:00:06]} 56. Rh6 {[%clk 0:00:14]}  e4 {[%clk 0:00:06]} 57. Nb6+ {[%clk 0:00:14]}  Kc5 {[%clk 0:00:05]} 58. Nd7+ {[%clk 0:00:14]}  Kc4 {[%clk 0:00:06]} 59. Ne5+ {[%clk 0:00:14]}  Kc3 {[%clk 0:00:06]} 60. Rxh7 {[%clk 0:00:13]}  e3 {[%clk 0:00:06]} 61. Rc7+ {[%clk 0:00:13]}  Kd2 {[%clk 0:00:07]} 62. Rd7 {[%clk 0:00:13]}  Kc3 {[%clk 0:00:06]} 63. Rc7+ {[%clk 0:00:11]}  Kd2 {[%clk 0:00:06]} 64. Rd7 {[%clk 0:00:11]}  e2 {[%clk 0:00:06]} 65. Rxd4+ {[%clk 0:00:11]}  Ke3 {[%clk 0:00:07]} 66. Rd3+ {[%clk 0:00:08]}  Ke4 {[%clk 0:00:05]} 67. Nf3 {[%clk 0:00:08]}  Kxd3 {[%clk 0:00:05]} 68. Ne1+ {[%clk 0:00:09]}  Kd2 {[%clk 0:00:06]} 69. Nxc2 {[%clk 0:00:09]}  Kxc2 {[%clk 0:00:07]} 70. h4 {[%clk 0:00:07]}  e1=Q+ {[%clk 0:00:07]} 71. Kh2 {[%clk 0:00:07]}  Qxh4+ {[%clk 0:00:08]} 72. Kg1 {[%clk 0:00:08]}  Kd2 {[%clk 0:00:08]} 73. g3 {[%clk 0:00:08]}  Qxg3+ {[%clk 0:00:08]} 74. Kh1 {[%clk 0:00:06]}  Qg4 {[%clk 0:00:08]} 0-1


[Site "https://www.chess.com"]